[Event "Titled Tuesday Blitz February 14 Late 2023"]
[White "Kamsky, Gata"]
[Black "Martinez Ramirez, Lennis"]
[WhiteFideId "2000024"]
[BlackFideId "3509079"]
[WhiteElo "2665"]
[BlackElo "2426"]
[Result "1-0"]
[Round "03"]
[TimeControl "180+2"]
[Date "2023.02.14"]
[WhiteClock "0:00:41"]
[BlackClock "0:00:01"]

1. e4 {[%clk 0:03:00]}  e5 {[%clk 0:02:59]} 2. Nf3 {[%clk 0:02:58]}  Nf6 {[%clk 0:03:00]} 3. Nxe5 {[%clk 0:02:55]}  d6 {[%clk 0:03:00]} 4. Nf3 {[%clk 0:02:55]}  Nxe4 {[%clk 0:03:00]} 5. Qe2 {[%clk 0:02:56]}  Qe7 {[%clk 0:02:59]} 6. d3 {[%clk 0:02:56]}  Nf6 {[%clk 0:02:56]} 7. Nc3 {[%clk 0:02:56]}  Qxe2+ {[%clk 0:02:53]} 8. Bxe2 {[%clk 0:02:55]}  Be7 {[%clk 0:02:50]} 9. Nb5 {[%clk 0:02:49]}  Na6 {[%clk 0:02:46]} 10. Bf4 {[%clk 0:02:36]}  Bd7 {[%clk 0:02:35]} 11. a4 {[%clk 0:02:35]}  Nd5 {[%clk 0:02:32]} 12. Bg3 {[%clk 0:02:34]}  Ndb4 {[%clk 0:02:31]} 13. Kd2 {[%clk 0:02:31]}  Nc6 {[%clk 0:02:04]} 14. Rhe1 {[%clk 0:02:26]}  O-O-O {[%clk 0:02:02]} 15. d4 {[%clk 0:02:23]}  d5 {[%clk 0:01:25]} 16. c3 {[%clk 0:02:18]}  Rde8 {[%clk 0:01:10]} 17. b4 {[%clk 0:02:13]}  Bd8 {[%clk 0:01:10]} 18. Bd3 {[%clk 0:02:10]}  g5 {[%clk 0:00:48]} 19. h3 {[%clk 0:02:00]}  f6 {[%clk 0:00:48]} 20. Rxe8 {[%clk 0:01:46]}  Bxe8 {[%clk 0:00:47]} 21. Re1 {[%clk 0:01:44]}  Nab8 {[%clk 0:00:46]} 22. Na3 {[%clk 0:01:30]}  h5 {[%clk 0:00:44]} 23. Nc2 {[%clk 0:01:27]}  Ne7 {[%clk 0:00:43]} 24. a5 {[%clk 0:01:24]}  h4 {[%clk 0:00:33]} 25. Bh2 {[%clk 0:01:24]}  Bg6 {[%clk 0:00:30]} 26. Bxg6 {[%clk 0:01:21]}  Nxg6 {[%clk 0:00:29]} 27. Ne3 {[%clk 0:01:21]}  Ne7 {[%clk 0:00:24]} 28. Kd3 {[%clk 0:01:21]}  c6 {[%clk 0:00:24]} 29. Nd2 {[%clk 0:01:19]}  Nd7 {[%clk 0:00:21]} 30. Nb3 {[%clk 0:01:19]}  b6 {[%clk 0:00:18]} 31. axb6 {[%clk 0:01:16]}  axb6 {[%clk 0:00:18]} 32. b5 {[%clk 0:01:15]}  cxb5 {[%clk 0:00:15]} 33. Bd6 {[%clk 0:01:15]}  Kb7 {[%clk 0:00:06]} 34. Bxe7 {[%clk 0:01:14]}  Bxe7 {[%clk 0:00:07]} 35. Nxd5 {[%clk 0:01:14]}  Bd8 {[%clk 0:00:08]} 36. Re6 {[%clk 0:01:13]}  Nf8 {[%clk 0:00:04]} 37. Re8 {[%clk 0:01:13]}  Ng6 {[%clk 0:00:04]} 38. Rxh8 {[%clk 0:01:09]}  Nxh8 {[%clk 0:00:04]} 39. Ke4 {[%clk 0:01:10]}  Kc6 {[%clk 0:00:04]} 40. Nb4+ {[%clk 0:01:07]}  Kd6 {[%clk 0:00:05]} 41. d5 {[%clk 0:01:05]}  Nf7 {[%clk 0:00:04]} 42. Nd4 {[%clk 0:01:05]}  Kc5 {[%clk 0:00:05]} 43. Kf5 {[%clk 0:01:03]}  Kc4 {[%clk 0:00:04]} 44. Ke6 {[%clk 0:01:01]}  Ne5 {[%clk 0:00:03]} 45. Nbc6 {[%clk 0:01:00]}  Bc7 {[%clk 0:00:02]} 46. d6 {[%clk 0:01:00]}  Nxc6 {[%clk 0:00:01]} 47. Nxc6 {[%clk 0:00:59]}  Bxd6 {[%clk 0:00:02]} 48. Kxd6 {[%clk 0:00:59]}  Kxc3 {[%clk 0:00:03]} 49. Ke6 {[%clk 0:00:48]}  b4 {[%clk 0:00:04]} 50. Nxb4 {[%clk 0:00:48]}  Kxb4 {[%clk 0:00:04]} 51. Kxf6 {[%clk 0:00:49]}  Kc3 {[%clk 0:00:04]} 52. Kxg5 {[%clk 0:00:48]}  b5 {[%clk 0:00:04]} 53. f4 {[%clk 0:00:49]}  b4 {[%clk 0:00:05]} 54. f5 {[%clk 0:00:50]}  b3 {[%clk 0:00:06]} 55. f6 {[%clk 0:00:50]}  b2 {[%clk 0:00:07]} 56. f7 {[%clk 0:00:51]}  b1=Q {[%clk 0:00:08]} 57. f8=Q {[%clk 0:00:51]}  Qc1+ {[%clk 0:00:07]} 58. Qf4 {[%clk 0:00:51]}  Qg1 {[%clk 0:00:06]} 59. Qf3+ {[%clk 0:00:51]}  Kd4 {[%clk 0:00:06]} 60. Kxh4 {[%clk 0:00:51]}  Ke5 {[%clk 0:00:06]} 61. g4 {[%clk 0:00:51]}  Ke6 {[%clk 0:00:01]} 62. Kh5 {[%clk 0:00:49]}  Qd4 {[%clk 0:00:01]} 63. Qf5+ {[%clk 0:00:48]}  Ke7 {[%clk 0:00:01]} 64. Qg5+ {[%clk 0:00:43]}  Ke6 {[%clk 0:00:01]} 65. h4 {[%clk 0:00:41]} 1-0


[Site "https://www.chess.com"]

[Event "Titled Tuesday Blitz February 14 Late 2023"]
[White "Gorodetzky, David"]
[Black "Atanasov, Anthony"]
[WhiteFideId "2813416"]
[BlackFideId "2623897"]
[WhiteElo "2485"]
[BlackElo "2368"]
[Result "0-1"]
[Round "03"]
[TimeControl "180+2"]
[Date "2023.02.14"]
[WhiteClock "0:00:14"]
[BlackClock "0:00:09"]

1. Nf3 {[%clk 0:03:00]}  Nf6 {[%clk 0:02:59]} 2. b3 {[%clk 0:03:00]}  d5 {[%clk 0:02:58]} 3. Bb2 {[%clk 0:03:00]}  Bf5 {[%clk 0:02:58]} 4. g3 {[%clk 0:02:57]}  e6 {[%clk 0:02:58]} 5. Bg2 {[%clk 0:02:58]}  Be7 {[%clk 0:02:57]} 6. O-O {[%clk 0:02:57]}  O-O {[%clk 0:02:58]} 7. c4 {[%clk 0:02:54]}  c6 {[%clk 0:02:56]} 8. Nc3 {[%clk 0:02:53]}  Nbd7 {[%clk 0:02:56]} 9. Rc1 {[%clk 0:02:51]}  h6 {[%clk 0:02:54]} 10. d4 {[%clk 0:02:51]}  a5 {[%clk 0:02:52]} 11. a3 {[%clk 0:02:50]}  Ne4 {[%clk 0:02:51]} 12. Nxe4 {[%clk 0:02:35]}  Bxe4 {[%clk 0:02:50]} 13. Ne1 {[%clk 0:02:34]}  Bxg2 {[%clk 0:02:44]} 14. Kxg2 {[%clk 0:02:34]}  b5 {[%clk 0:02:40]} 15. Nd3 {[%clk 0:02:33]}  bxc4 {[%clk 0:02:32]} 16. bxc4 {[%clk 0:02:33]}  Nb6 {[%clk 0:02:32]} 17. Ne5 {[%clk 0:02:31]}  Nxc4 {[%clk 0:02:11]} 18. Nxc4 {[%clk 0:02:27]}  dxc4 {[%clk 0:02:10]} 19. e4 {[%clk 0:02:27]}  Qb6 {[%clk 0:02:05]} 20. Qe2 {[%clk 0:02:23]}  Rab8 {[%clk 0:02:02]} 21. Rc2 {[%clk 0:02:13]}  Qb3 {[%clk 0:01:54]} 22. Ra1 {[%clk 0:02:08]}  Qd3 {[%clk 0:01:27]} 23. Kf1 {[%clk 0:02:08]}  Rb3 {[%clk 0:01:25]} 24. Rd1 {[%clk 0:01:40]}  Rfb8 {[%clk 0:01:18]} 25. Rxd3 {[%clk 0:00:58]}  cxd3 {[%clk 0:01:17]} 26. Qd2 {[%clk 0:00:58]}  dxc2 {[%clk 0:01:15]} 27. Bc1 {[%clk 0:00:58]}  Rb2 {[%clk 0:00:20]} 28. Kg2 {[%clk 0:00:25]}  Ra2 {[%clk 0:00:16]} 29. h4 {[%clk 0:00:26]}  Rb1 {[%clk 0:00:14]} 30. Kf3 {[%clk 0:00:20]}  Rxc1 {[%clk 0:00:12]} 31. Qxc1 {[%clk 0:00:17]}  Bxa3 {[%clk 0:00:12]} 32. Qf4 {[%clk 0:00:14]}  c1=Q {[%clk 0:00:11]} 33. Qb8+ {[%clk 0:00:15]}  Kh7 {[%clk 0:00:11]} 34. Qe8 {[%clk 0:00:14]}  Qh1+ {[%clk 0:00:10]} 35. Kg4 {[%clk 0:00:14]}  Qxe4+ {[%clk 0:00:09]} 0-1


[Site "https://www.chess.com"]

[Event "Titled Tuesday Blitz February 14 Late 2023"]
[White "Maltsevskaya, Aleksandra"]
[Black "Remizov, Yaroslav"]
[WhiteFideId "24174041"]
[BlackFideId "34134015"]
[WhiteElo "2390"]
[BlackElo "2421"]
[Result "0-1"]
[Round "03"]
[TimeControl "180+2"]
[Date "2023.02.14"]
[WhiteClock "0:02:32"]
[BlackClock "0:02:31"]

1. Nf3 {[%clk 0:02:59]}  d5 {[%clk 0:02:57]} 2. g3 {[%clk 0:03:00]}  Bg4 {[%clk 0:02:57]} 3. Bg2 {[%clk 0:03:00]}  Nd7 {[%clk 0:02:58]} 4. O-O {[%clk 0:03:00]}  e5 {[%clk 0:02:58]} 5. d3 {[%clk 0:02:56]}  Ngf6 {[%clk 0:02:57]} 6. h3 {[%clk 0:02:54]}  Bxf3 {[%clk 0:02:56]} 7. Bxf3 {[%clk 0:02:55]}  c6 {[%clk 0:02:56]} 8. e4 {[%clk 0:02:55]}  dxe4 {[%clk 0:02:55]} 9. dxe4 {[%clk 0:02:56]}  Be7 {[%clk 0:02:55]} 10. Qe2 {[%clk 0:02:56]}  O-O {[%clk 0:02:55]} 11. Rd1 {[%clk 0:02:54]}  Qc7 {[%clk 0:02:55]} 12. Nd2 {[%clk 0:02:54]}  Rfd8 {[%clk 0:02:54]} 13. Nc4 {[%clk 0:02:51]}  b5 {[%clk 0:02:54]} 14. Ne3 {[%clk 0:02:51]}  Bf8 {[%clk 0:02:48]} 15. c3 {[%clk 0:02:49]}  Nc5 {[%clk 0:02:48]} 16. Rf1 {[%clk 0:02:47]}  Ncxe4 {[%clk 0:02:42]} 17. Bxe4 {[%clk 0:02:45]}  Nxe4 {[%clk 0:02:42]} 18. Ng4 {[%clk 0:02:46]}  f5 {[%clk 0:02:32]} 19. Bg5 {[%clk 0:02:32]}  Nxg5 {[%clk 0:02:31]} 0-1


[Site "https://www.chess.com"]

[Event "Titled Tuesday Blitz February 14 Late 2023"]
[White "Samsonkin, Artiom"]
[Black "Martinez Reyes, Pedro Ramon"]
[WhiteFideId "13503111"]
[BlackFideId "3901807"]
[WhiteElo "2420"]
[BlackElo "2376"]
[Result "1-0"]
[Round "03"]
[TimeControl "180+2"]
[Date "2023.02.14"]
[WhiteClock "0:00:30"]
[BlackClock "0:00:04"]

1. d4 {[%clk 0:03:00]}  Nf6 {[%clk 0:02:58]} 2. Nf3 {[%clk 0:03:01]}  e6 {[%clk 0:02:57]} 3. Bf4 {[%clk 0:03:02]}  Bd6 {[%clk 0:02:56]} 4. Bg3 {[%clk 0:03:00]}  b6 {[%clk 0:02:55]} 5. Nbd2 {[%clk 0:02:57]}  Bb7 {[%clk 0:02:55]} 6. e3 {[%clk 0:02:54]}  O-O {[%clk 0:02:49]} 7. Bd3 {[%clk 0:02:54]}  Bxg3 {[%clk 0:02:41]} 8. hxg3 {[%clk 0:02:54]}  d6 {[%clk 0:02:39]} 9. g4 {[%clk 0:02:52]}  h6 {[%clk 0:02:39]} 10. g5 {[%clk 0:02:52]}  hxg5 {[%clk 0:02:38]} 11. Nxg5 {[%clk 0:02:52]}  g6 {[%clk 0:02:39]} 12. Qe2 {[%clk 0:02:37]}  Nbd7 {[%clk 0:02:28]} 13. O-O-O {[%clk 0:02:36]}  Kg7 {[%clk 0:02:28]} 14. f4 {[%clk 0:02:29]}  Qe7 {[%clk 0:02:26]} 15. e4 {[%clk 0:02:21]}  e5 {[%clk 0:02:23]} 16. Qf2 {[%clk 0:02:12]}  Rh8 {[%clk 0:02:19]} 17. Bc4 {[%clk 0:01:59]}  d5 {[%clk 0:01:17]} 18. exd5 {[%clk 0:01:54]}  exf4 {[%clk 0:01:05]} 19. Rxh8 {[%clk 0:01:18]}  Rxh8 {[%clk 0:01:04]} 20. Re1 {[%clk 0:01:17]}  Qd6 {[%clk 0:00:45]} 21. Nge4 {[%clk 0:01:06]}  Nxe4 {[%clk 0:00:45]} 22. Nxe4 {[%clk 0:01:07]}  Qb4 {[%clk 0:00:46]} 23. Bb3 {[%clk 0:01:02]}  Re8 {[%clk 0:00:36]} 24. c3 {[%clk 0:00:58]}  Qe7 {[%clk 0:00:34]} 25. Qxf4 {[%clk 0:00:50]}  Nf6 {[%clk 0:00:25]} 26. d6 {[%clk 0:00:33]}  cxd6 {[%clk 0:00:20]} 27. Rh1 {[%clk 0:00:34]}  Ng8 {[%clk 0:00:06]} 28. Nxd6 {[%clk 0:00:31]}  Bxg2 {[%clk 0:00:04]} 29. Rg1 {[%clk 0:00:30]}  Bc6 {[%clk 0:00:04]} 30. Nf5+ {[%clk 0:00:30]} 1-0


[Site "https://www.chess.com"]

[Event "Titled Tuesday Blitz February 14 Late 2023"]
[White "Avinash, Ramesh"]
[Black "Manukyan, Artyom"]
[WhiteFideId "45018340"]
[BlackFideId "13305786"]
[WhiteElo "2319"]
[BlackElo "2110"]
[Result "1-0"]
[Round "03"]
[TimeControl "180+2"]
[Date "2023.02.14"]
[WhiteClock "0:02:05"]
[BlackClock "0:00:13"]

1. c4 {[%clk 0:03:00]}  e6 {[%clk 0:02:59]} 2. Nc3 {[%clk 0:03:00]}  d5 {[%clk 0:03:00]} 3. d4 {[%clk 0:03:00]}  Nf6 {[%clk 0:02:59]} 4. cxd5 {[%clk 0:03:01]}  exd5 {[%clk 0:02:59]} 5. Bg5 {[%clk 0:03:01]}  c6 {[%clk 0:03:00]} 6. Nf3 {[%clk 0:03:01]}  Be7 {[%clk 0:02:59]} 7. e3 {[%clk 0:03:01]}  Bf5 {[%clk 0:02:59]} 8. Ne5 {[%clk 0:03:02]}  Nbd7 {[%clk 0:02:59]} 9. Bd3 {[%clk 0:03:02]}  Bxd3 {[%clk 0:02:59]} 10. Nxd3 {[%clk 0:03:03]}  O-O {[%clk 0:02:59]} 11. O-O {[%clk 0:03:03]}  a5 {[%clk 0:02:59]} 12. Rc1 {[%clk 0:03:03]}  h6 {[%clk 0:02:59]} 13. Bf4 {[%clk 0:02:55]}  Re8 {[%clk 0:02:59]} 14. h3 {[%clk 0:02:54]}  Ne4 {[%clk 0:02:56]} 15. Nxe4 {[%clk 0:02:44]}  dxe4 {[%clk 0:02:57]} 16. Ne5 {[%clk 0:02:45]}  Nxe5 {[%clk 0:02:56]} 17. Bxe5 {[%clk 0:02:46]}  Bf8 {[%clk 0:02:36]} 18. Qb3 {[%clk 0:02:41]}  Qd7 {[%clk 0:02:36]} 19. Rfd1 {[%clk 0:02:37]}  Re6 {[%clk 0:02:35]} 20. Bg3 {[%clk 0:02:36]}  Rd8 {[%clk 0:02:32]} 21. d5 {[%clk 0:02:31]}  cxd5 {[%clk 0:02:07]} 22. Rc7 {[%clk 0:02:31]}  Qe8 {[%clk 0:01:58]} 23. Rxd5 {[%clk 0:02:30]}  Rxd5 {[%clk 0:01:45]} 24. Qxd5 {[%clk 0:02:30]}  b6 {[%clk 0:01:45]} 25. Qb7 {[%clk 0:02:30]}  Re7 {[%clk 0:01:22]} 26. Qxb6 {[%clk 0:02:27]}  Rxc7 {[%clk 0:01:11]} 27. Qxc7 {[%clk 0:02:27]}  a4 {[%clk 0:01:05]} 28. Qb8 {[%clk 0:02:26]}  Qe6 {[%clk 0:01:03]} 29. b3 {[%clk 0:02:22]}  a3 {[%clk 0:01:00]} 30. Qb5 {[%clk 0:02:17]}  Bd6 {[%clk 0:00:28]} 31. Qc6 {[%clk 0:02:05]}  Bxg3 {[%clk 0:00:14]} 32. Qxe6 {[%clk 0:02:05]}  Bxf2+ {[%clk 0:00:15]} 33. Kxf2 {[%clk 0:02:05]}  fxe6 {[%clk 0:00:16]} 34. Kg3 {[%clk 0:02:06]}  e5 {[%clk 0:00:15]} 35. Kg4 {[%clk 0:02:06]}  g6 {[%clk 0:00:15]} 36. h4 {[%clk 0:02:06]}  Kf7 {[%clk 0:00:16]} 37. h5 {[%clk 0:02:04]}  gxh5+ {[%clk 0:00:15]} 38. Kxh5 {[%clk 0:02:04]}  Kg7 {[%clk 0:00:15]} 39. g4 {[%clk 0:02:04]}  Kh7 {[%clk 0:00:12]} 40. b4 {[%clk 0:02:03]}  Kg7 {[%clk 0:00:13]} 41. b5 {[%clk 0:02:04]}  Kf6 {[%clk 0:00:13]} 42. b6 {[%clk 0:02:05]} 1-0


[Site "https://www.chess.com"]

[Event "Titled Tuesday Blitz February 14 Late 2023"]
[White "Rasulov, Vugar"]
[Black "Pulpan, Jakub"]
[WhiteFideId "13402390"]
[BlackFideId "302759"]
[WhiteElo "2523"]
[BlackElo "2427"]
[Result "1-0"]
[Round "03"]
[TimeControl "180+2"]
[Date "2023.02.14"]
[WhiteClock "0:00:17"]
[BlackClock "0:00:02"]

1. d4 {[%clk 0:03:00]}  Nf6 {[%clk 0:02:56]} 2. c4 {[%clk 0:03:01]}  e6 {[%clk 0:02:56]} 3. Nf3 {[%clk 0:03:01]}  d5 {[%clk 0:02:56]} 4. g3 {[%clk 0:03:01]}  Be7 {[%clk 0:02:56]} 5. Bg2 {[%clk 0:03:02]}  O-O {[%clk 0:02:57]} 6. O-O {[%clk 0:03:02]}  dxc4 {[%clk 0:02:58]} 7. Qa4 {[%clk 0:03:01]}  b6 {[%clk 0:02:56]} 8. Qxc4 {[%clk 0:02:57]}  Bb7 {[%clk 0:02:55]} 9. Nc3 {[%clk 0:02:56]}  Nbd7 {[%clk 0:02:49]} 10. Bf4 {[%clk 0:02:53]}  c5 {[%clk 0:02:47]} 11. Rfd1 {[%clk 0:02:49]}  Rc8 {[%clk 0:02:44]} 12. Qa4 {[%clk 0:02:44]}  a6 {[%clk 0:02:42]} 13. Ne5 {[%clk 0:02:43]}  b5 {[%clk 0:02:41]} 14. Qc2 {[%clk 0:02:38]}  Bxg2 {[%clk 0:02:27]} 15. Kxg2 {[%clk 0:02:39]}  b4 {[%clk 0:02:22]} 16. Na4 {[%clk 0:02:03]}  cxd4 {[%clk 0:01:56]} 17. Nc6 {[%clk 0:02:02]}  e5 {[%clk 0:01:31]} 18. Bd2 {[%clk 0:01:57]}  Nb8 {[%clk 0:01:04]} 19. Nxe7+ {[%clk 0:01:44]}  Qxe7 {[%clk 0:01:05]} 20. Qb3 {[%clk 0:01:45]}  a5 {[%clk 0:01:01]} 21. Rac1 {[%clk 0:01:42]}  Ne4 {[%clk 0:00:50]} 22. Be1 {[%clk 0:01:39]}  Nc5 {[%clk 0:00:43]} 23. Nxc5 {[%clk 0:01:36]}  Rxc5 {[%clk 0:00:44]} 24. a3 {[%clk 0:01:32]}  bxa3 {[%clk 0:00:34]} 25. Qxa3 {[%clk 0:01:26]}  Qb7+ {[%clk 0:00:33]} 26. Kg1 {[%clk 0:01:26]}  Rb5 {[%clk 0:00:25]} 27. Bxa5 {[%clk 0:01:16]}  Rxb2 {[%clk 0:00:19]} 28. Bc7 {[%clk 0:01:10]}  Rxe2 {[%clk 0:00:13]} 29. Bd6 {[%clk 0:01:10]}  Re8 {[%clk 0:00:08]} 30. Rb1 {[%clk 0:01:11]}  Qe4 {[%clk 0:00:04]} 31. Bxb8 {[%clk 0:01:08]}  h5 {[%clk 0:00:02]} 32. Qa4 {[%clk 0:00:59]}  Re6 {[%clk 0:00:01]} 33. Qd7 {[%clk 0:00:57]}  h4 {[%clk 0:00:01]} 34. Qd8+ {[%clk 0:00:49]}  Kh7 {[%clk 0:00:02]} 35. Qxh4+ {[%clk 0:00:49]}  Qxh4 {[%clk 0:00:02]} 36. gxh4 {[%clk 0:00:50]}  Rg6+ {[%clk 0:00:02]} 37. Kf1 {[%clk 0:00:51]}  Re4 {[%clk 0:00:03]} 38. Re1 {[%clk 0:00:47]}  Rxe1+ {[%clk 0:00:03]} 39. Rxe1 {[%clk 0:00:48]}  f6 {[%clk 0:00:04]} 40. Re4 {[%clk 0:00:45]}  Rh6 {[%clk 0:00:04]} 41. Bc7 {[%clk 0:00:41]}  Kg6 {[%clk 0:00:04]} 42. Ba5 {[%clk 0:00:40]}  Kf5 {[%clk 0:00:04]} 43. f3 {[%clk 0:00:39]}  g6 {[%clk 0:00:05]} 44. Be1 {[%clk 0:00:26]}  Rh7 {[%clk 0:00:05]} 45. Re2 {[%clk 0:00:26]}  Rb7 {[%clk 0:00:05]} 46. Rc2 {[%clk 0:00:26]}  Rb3 {[%clk 0:00:05]} 47. Kg2 {[%clk 0:00:25]}  Rb1 {[%clk 0:00:05]} 48. Bf2 {[%clk 0:00:24]}  Rb3 {[%clk 0:00:05]} 49. Rc6 {[%clk 0:00:24]}  Rb2 {[%clk 0:00:05]} 50. Rc8 {[%clk 0:00:23]}  Ra2 {[%clk 0:00:04]} 51. Rh8 {[%clk 0:00:23]}  d3 {[%clk 0:00:03]} 52. Rd8 {[%clk 0:00:22]}  d2 {[%clk 0:00:03]} 53. Kg3 {[%clk 0:00:22]}  e4 {[%clk 0:00:03]} 54. Rd5+ {[%clk 0:00:20]}  Ke6 {[%clk 0:00:03]} 55. fxe4 {[%clk 0:00:21]}  f5 {[%clk 0:00:04]} 56. Be3 {[%clk 0:00:19]}  fxe4 {[%clk 0:00:02]} 57. Rxd2 {[%clk 0:00:19]}  Ra3 {[%clk 0:00:02]} 58. Kf4 {[%clk 0:00:20]}  Ra6 {[%clk 0:00:02]} 59. Rd4 {[%clk 0:00:19]}  Kf6 {[%clk 0:00:02]} 60. Rxe4 {[%clk 0:00:19]}  Kg7 {[%clk 0:00:02]} 61. Kg4 {[%clk 0:00:17]}  Ra3 {[%clk 0:00:01]} 62. Re7+ {[%clk 0:00:17]}  Kf6 {[%clk 0:00:02]} 63. Bg5# {[%clk 0:00:17]} 1-0


[Site "https://www.chess.com"]

[Event "Titled Tuesday Blitz February 14 Late 2023"]
[White "Sokolovsky, Yahli"]
[Black "Makarian, Rudik"]
[WhiteFideId "2820242"]
[BlackFideId "44105681"]
[WhiteElo "2461"]
[BlackElo "2545"]
[Result "1/2-1/2"]
[Round "03"]
[TimeControl "180+2"]
[Date "2023.02.14"]
[WhiteClock "0:00:04"]
[BlackClock "0:00:03"]

1. b3 {[%clk 0:02:42]}  d5 {[%clk 0:02:53]} 2. Bb2 {[%clk 0:02:34]}  Bg4 {[%clk 0:02:52]} 3. h3 {[%clk 0:02:21]}  Bh5 {[%clk 0:02:46]} 4. Nf3 {[%clk 0:02:15]}  Bxf3 {[%clk 0:02:45]} 5. exf3 {[%clk 0:02:16]}  e6 {[%clk 0:02:45]} 6. g3 {[%clk 0:02:05]}  Nf6 {[%clk 0:02:43]} 7. f4 {[%clk 0:02:01]}  g6 {[%clk 0:02:43]} 8. Bg2 {[%clk 0:01:57]}  Bg7 {[%clk 0:02:43]} 9. O-O {[%clk 0:01:52]}  O-O {[%clk 0:02:43]} 10. d3 {[%clk 0:01:49]}  c5 {[%clk 0:02:41]} 11. Nd2 {[%clk 0:01:44]}  Nc6 {[%clk 0:02:41]} 12. a3 {[%clk 0:01:36]}  a5 {[%clk 0:02:37]} 13. a4 {[%clk 0:01:29]}  Ne8 {[%clk 0:02:35]} 14. Bxg7 {[%clk 0:01:22]}  Nxg7 {[%clk 0:02:35]} 15. Re1 {[%clk 0:01:11]}  Qd6 {[%clk 0:02:33]} 16. Nf3 {[%clk 0:01:06]}  Nf5 {[%clk 0:02:29]} 17. Ne5 {[%clk 0:01:01]}  Rac8 {[%clk 0:02:24]} 18. h4 {[%clk 0:00:52]}  h5 {[%clk 0:02:23]} 19. Qd2 {[%clk 0:00:45]}  Rfd8 {[%clk 0:02:23]} 20. Nxc6 {[%clk 0:00:38]}  Qxc6 {[%clk 0:02:23]} 21. Qxa5 {[%clk 0:00:33]}  Qd6 {[%clk 0:02:23]} 22. Qd2 {[%clk 0:00:31]}  Qa6 {[%clk 0:02:20]} 23. c3 {[%clk 0:00:22]}  b6 {[%clk 0:02:15]} 24. Rad1 {[%clk 0:00:19]}  Qa5 {[%clk 0:02:15]} 25. Qb2 {[%clk 0:00:19]}  d4 {[%clk 0:02:14]} 26. c4 {[%clk 0:00:16]}  Qc3 {[%clk 0:02:11]} 27. Re2 {[%clk 0:00:09]}  Qb4 {[%clk 0:02:09]} 28. Rb1 {[%clk 0:00:08]}  Kg7 {[%clk 0:02:08]} 29. Qd2 {[%clk 0:00:08]}  Qa5 {[%clk 0:02:07]} 30. Be4 {[%clk 0:00:05]}  Nd6 {[%clk 0:02:07]} 31. Bf3 {[%clk 0:00:06]}  Nf5 {[%clk 0:02:06]} 32. Qe1 {[%clk 0:00:06]}  Re8 {[%clk 0:02:01]} 33. Ra2 {[%clk 0:00:06]}  Qc3 {[%clk 0:01:42]} 34. Be4 {[%clk 0:00:05]}  Qxe1+ {[%clk 0:01:31]} 35. Rxe1 {[%clk 0:00:05]}  Nd6 {[%clk 0:01:32]} 36. Bf3 {[%clk 0:00:05]}  Rb8 {[%clk 0:01:31]} 37. Re5 {[%clk 0:00:02]}  f6 {[%clk 0:01:30]} 38. Re1 {[%clk 0:00:02]}  e5 {[%clk 0:01:30]} 39. fxe5 {[%clk 0:00:02]}  Rxe5 {[%clk 0:01:27]} 40. Rxe5 {[%clk 0:00:02]}  fxe5 {[%clk 0:01:28]} 41. Re2 {[%clk 0:00:03]}  Kf6 {[%clk 0:01:28]} 42. Be4 {[%clk 0:00:03]}  Re8 {[%clk 0:01:15]} 43. Kg2 {[%clk 0:00:04]}  Re7 {[%clk 0:01:15]} 44. Bd5 {[%clk 0:00:05]}  Ne8 {[%clk 0:01:09]} 45. Kf3 {[%clk 0:00:04]}  Nc7 {[%clk 0:01:09]} 46. Be4 {[%clk 0:00:05]}  Na6 {[%clk 0:01:09]} 47. Ra2 {[%clk 0:00:05]}  Nb4 {[%clk 0:01:10]} 48. Ra1 {[%clk 0:00:06]}  Ra7 {[%clk 0:01:05]} 49. Ke2 {[%clk 0:00:07]}  g5 {[%clk 0:01:05]} 50. hxg5+ {[%clk 0:00:06]}  Kxg5 {[%clk 0:01:05]} 51. Rh1 {[%clk 0:00:07]}  Rf7 {[%clk 0:01:02]} 52. Rg1 {[%clk 0:00:04]}  Rg7 {[%clk 0:01:01]} 53. Rh1 {[%clk 0:00:03]}  Rf7 {[%clk 0:01:01]} 54. Bf3 {[%clk 0:00:03]}  Rh7 {[%clk 0:01:00]} 55. Rh4 {[%clk 0:00:02]}  Rh6 {[%clk 0:00:56]} 56. Re4 {[%clk 0:00:02]}  Kf5 {[%clk 0:00:54]} 57. Bg2 {[%clk 0:00:03]}  Rd6 {[%clk 0:00:43]} 58. Bh3+ {[%clk 0:00:03]}  Kf6 {[%clk 0:00:44]} 59. f4 {[%clk 0:00:04]}  exf4 {[%clk 0:00:44]} 60. Rxf4+ {[%clk 0:00:05]}  Kg6 {[%clk 0:00:43]} 61. Bf5+ {[%clk 0:00:05]}  Kg5 {[%clk 0:00:43]} 62. Be4 {[%clk 0:00:06]}  Rf6 {[%clk 0:00:41]} 63. Rh4 {[%clk 0:00:06]}  Na2 {[%clk 0:00:40]} 64. Kd2 {[%clk 0:00:06]}  Nc3 {[%clk 0:00:34]} 65. Rh2 {[%clk 0:00:06]}  Kg4 {[%clk 0:00:34]} 66. Rh4+ {[%clk 0:00:06]}  Kxg3 {[%clk 0:00:19]} 67. Rxh5 {[%clk 0:00:06]}  Rf2+ {[%clk 0:00:20]} 68. Kc1 {[%clk 0:00:04]}  Kf4 {[%clk 0:00:16]} 69. Rf5+ {[%clk 0:00:04]}  Ke3 {[%clk 0:00:16]} 70. Rxf2 {[%clk 0:00:05]}  Kxf2 {[%clk 0:00:16]} 71. Kd2 {[%clk 0:00:05]}  Kg3 {[%clk 0:00:15]} 72. Bc6 {[%clk 0:00:04]}  Kf4 {[%clk 0:00:15]} 73. Bb7 {[%clk 0:00:04]}  Ke5 {[%clk 0:00:16]} 74. Bc6 {[%clk 0:00:04]}  Kd6 {[%clk 0:00:16]} 75. Bf3 {[%clk 0:00:05]}  Kc7 {[%clk 0:00:17]} 76. Kc2 {[%clk 0:00:05]}  Na2 {[%clk 0:00:15]} 77. Kb2 {[%clk 0:00:05]}  Nb4 {[%clk 0:00:15]} 78. Be4 {[%clk 0:00:06]}  Kb8 {[%clk 0:00:15]} 79. Ka3 {[%clk 0:00:05]}  Ka7 {[%clk 0:00:16]} 80. Bf5 {[%clk 0:00:05]}  Ka6 {[%clk 0:00:16]} 81. Be4 {[%clk 0:00:05]}  Ka5 {[%clk 0:00:17]} 82. Bf5 {[%clk 0:00:05]}  Na6 {[%clk 0:00:17]} 83. Bc8 {[%clk 0:00:05]}  Nc7 {[%clk 0:00:17]} 84. Bd7 {[%clk 0:00:05]}  Na6 {[%clk 0:00:16]} 85. Bg4 {[%clk 0:00:03]}  Nb4 {[%clk 0:00:16]} 86. Be2 {[%clk 0:00:04]}  Nc2+ {[%clk 0:00:16]} 87. Kb2 {[%clk 0:00:04]}  Ne3 {[%clk 0:00:14]} 88. Ka3 {[%clk 0:00:05]}  Ng2 {[%clk 0:00:13]} 89. Bf3 {[%clk 0:00:05]}  Ne1 {[%clk 0:00:12]} 90. Be2 {[%clk 0:00:05]}  Nc2+ {[%clk 0:00:11]} 91. Kb2 {[%clk 0:00:06]}  Ne3 {[%clk 0:00:11]} 92. Ka3 {[%clk 0:00:06]}  Nf5 {[%clk 0:00:10]} 93. Bf3 {[%clk 0:00:06]}  Nd6 {[%clk 0:00:09]} 94. Bd5 {[%clk 0:00:05]}  Ne8 {[%clk 0:00:09]} 95. Be4 {[%clk 0:00:05]}  Nc7 {[%clk 0:00:10]} 96. Bf5 {[%clk 0:00:05]}  Na6 {[%clk 0:00:10]} 97. Bg4 {[%clk 0:00:06]}  Nb4 {[%clk 0:00:10]} 98. Be2 {[%clk 0:00:06]}  Nc6 {[%clk 0:00:10]} 99. Bg4 {[%clk 0:00:06]}  Ne5 {[%clk 0:00:08]} 100. Be2 {[%clk 0:00:06]}  Nf7 {[%clk 0:00:07]} 101. Bh5 {[%clk 0:00:06]}  Nd8 {[%clk 0:00:07]} 102. Bg4 {[%clk 0:00:06]}  Nc6 {[%clk 0:00:05]} 103. Bf3 {[%clk 0:00:07]}  Ne5 {[%clk 0:00:05]} 104. Be2 {[%clk 0:00:07]}  Ng6 {[%clk 0:00:06]} 105. Bd1 {[%clk 0:00:05]}  Nf4 {[%clk 0:00:07]} 106. Bc2 {[%clk 0:00:05]}  Ne2 {[%clk 0:00:05]} 107. Bd1 {[%clk 0:00:06]}  Nc3 {[%clk 0:00:04]} 108. Bf3 {[%clk 0:00:06]}  Nb1+ {[%clk 0:00:03]} 109. Kb2 {[%clk 0:00:06]}  Nd2 {[%clk 0:00:04]} 110. Be2 {[%clk 0:00:06]}  Kb4 {[%clk 0:00:04]} 111. Bd1 {[%clk 0:00:07]}  Nf1 {[%clk 0:00:03]} 112. Be2 {[%clk 0:00:07]}  Ne3 {[%clk 0:00:04]} 113. Bf3 {[%clk 0:00:07]}  Nf5 {[%clk 0:00:04]} 114. Be2 {[%clk 0:00:07]}  Ng3 {[%clk 0:00:04]} 115. Bf3 {[%clk 0:00:07]}  Nf1 {[%clk 0:00:04]} 116. Kc2 {[%clk 0:00:07]}  Ne3+ {[%clk 0:00:04]} 117. Kb2 {[%clk 0:00:07]}  Nf1 {[%clk 0:00:04]} 118. Bd1 {[%clk 0:00:04]}  Nd2 {[%clk 0:00:03]} 119. Bc2 {[%clk 0:00:04]}  Nf3 {[%clk 0:00:02]} 120. Bd1 {[%clk 0:00:04]}  Ne5 {[%clk 0:00:03]} 1/2-1/2


[Site "https://www.chess.com"]